bitfinex/quotes_BTCUSD_20241002
["timestamp","ask_amount","ask_price","bid_price","bid_amount"]
[1727840581332,0.000819,61987.0,61986.0,0.129061]
[1727840582026,0.000819,61987.0,61986.0,0.130061]
[1727840583767,0.000819,61987.0,61986.0,0.129061]
[1727840584702,0.000819,61987.0,61986.0,0.131061]
[1727840584985,0.000819,61987.0,61986.0,0.48631988]
[1727840585232,0.000819,61987.0,61986.0,0.48431988]
[1727840585494,0.000819,61987.0,61986.0,0.48731988]
[1727840586784,0.000819,61987.0,61986.0,0.48431988]
[1727840587034,0.000819,61987.0,61986.0,0.59431988]
[1727840587582,0.000819,61987.0,61986.0,0.58931988]
[1727840587800,0.000819,61987.0,61986.0,0.58431988]
[1727840588036,0.000819,61987.0,61986.0,0.59131988]
[1727840588520,0.000819,61987.0,61986.0,0.58531988]
[1727840588756,0.000819,61987.0,61986.0,0.59131988]
[1727840589429,0.000819,61987.0,61986.0,0.59031988]
[1727840589869,0.000819,61987.0,61986.0,0.58431988]
[1727840590320,0.000819,61987.0,61986.0,0.59331988]
[1727840591418,0.000819,61987.0,61986.0,0.59731988]
[1727840592981,0.28499923,62000.0,61999.0,0.129034]
[1727840594813,0.28599923,62000.0,61999.0,0.130034]
[1727840595933,0.28499923,62000.0,61999.0,0.129034]
[1727840596179,0.28599923,62000.0,61999.0,0.129034]
[1727840597665,0.28599923,62000.0,61999.0,0.130034]
[1727840598386,0.28599923,62000.0,61999.0,0.129034]
[1727840598634,0.3949646,62000.0,61999.0,0.129034]
[1727840598862,0.3959646,62000.0,61999.0,0.129034]
[1727840599090,0.3949646,62000.0,61999.0,0.129034]
[1727840599328,0.3959646,62000.0,61999.0,0.129034]
[1727840599563,0.3959646,62000.0,61999.0,0.132034]
[1727840599803,0.28599923,62000.0,61999.0,0.132034]
[1727840600803,0.28499923,62000.0,61999.0,0.129034]
[1727840601035,0.28599923,62000.0,61999.0,0.131034]
[1727840601264,0.28499923,62000.0,61999.0,0.131034]
[1727840601491,0.28599923,62000.0,61999.0,0.129034]
[1727840602232,0.28599923,62000.0,61986.0,0.24659445]
[1727840602480,0.45361014,62000.0,61997.0,0.129037]
[1727840602738,0.45361014,62000.0,61995.0,0.258082]
[1727840602739,0.45461014,62000.0,61998.0,0.129036]
[1727840602987,0.45461014,62000.0,61995.0,0.258082]
[1727840602988,0.58364214,62000.0,61999.0,0.001]
[1727840603231,0.45461014,62000.0,61997.0,0.129038]
[1727840603709,0.129034,61999.0,61995.0,0.387123]
[1727840603951,0.45461014,62000.0,61994.0,0.24296023]
[1727840604188,0.091,61994.0,61987.0,0.24296023]
[1727840604460,0.16761091,61990.0,61987.0,0.24296023]
[1727840604701,0.091,61989.0,61988.0,0.129057]
[1727840607348,0.095,61989.0,61988.0,0.129057]
[1727840608545,0.095,61989.0,61988.0,0.130697]
[1727840609284,0.095,61989.0,61988.0,0.00164]
[1727840610283,0.1738,61989.0,61988.0,0.00164]
[1727840610518,0.302855,61989.0,61988.0,0.00164]
[1727840610981,0.298855,61989.0,61988.0,0.00164]
[1727840611228,0.302855,61989.0,61988.0,0.00164]
[1727840611940,0.298855,61989.0,61988.0,0.00164]
[1727840612199,0.302855,61989.0,61988.0,0.00264]
[1727840612424,0.298855,61989.0,61988.0,0.00164]
[1727840612894,0.302855,61989.0,61988.0,0.00164]
[1727840614136,0.298855,61989.0,61988.0,0.00164]
[1727840614365,0.298855,61989.0,61988.0,0.00264]
[1727840614366,0.302855,61989.0,61988.0,0.00264]
[1727840615325,0.32814091,61989.0,61988.0,0.00264]
[1727840616049,0.37647737,61989.0,61988.0,0.00264]
[1727840618003,0.32814091,61989.0,61988.0,0.00264]
[1727840618996,0.34037631,61989.0,61988.0,0.00264]
[1727840619255,0.38871277,61989.0,61988.0,0.00264]
[1727840620272,0.38870858,61989.0,61988.0,0.00264]
[1727840620510,0.55631949,61989.0,61988.0,0.00264]
[1727840620738,0.50798722,61989.0,61988.0,0.00264]
[1727840621666,0.45042338,61989.0,61988.0,0.00264]
[1727840622111,0.42513747,61989.0,61988.0,0.00264]
[1727840625142,0.29608247,61989.0,61988.0,0.00264]
[1727840625363,0.21728247,61989.0,61988.0,0.00264]
[1727840625822,0.34633747,61989.0,61988.0,0.00264]
[1727840630744,0.2362904,61989.0,61988.0,0.00264]
[1727840630967,0.34633747,61989.0,61988.0,0.00264]
[1727840634185,0.1072354,61989.0,61988.0,0.00264]
[1727840634412,0.21728247,61989.0,61988.0,0.00264]
[1727840636522,0.21728247,61989.0,61988.0,0.131697]
[1727840636743,0.34633747,61989.0,61988.0,0.00264]
[1727840639193,0.21728247,61989.0,61988.0,0.00264]
[1727840641045,0.21728247,61989.0,61988.0,0.131697]
[1727840641297,0.12628247,61989.0,61988.0,0.131697]
[1727840641545,0.12628247,61989.0,61988.0,0.212297]
[1727840641546,0.0162354,61989.0,61988.0,0.212297]
[1727840642695,0.0122354,61989.0,61988.0,0.211297]
[1727840643168,0.0122354,61989.0,61988.0,0.213297]
[1727840643604,0.0122354,61989.0,61988.0,0.216297]
[1727840644288,0.0122354,61989.0,61988.0,0.211297]
[1727840644518,0.0122354,61989.0,61988.0,0.218297]
[1727840644972,0.0122354,61989.0,61988.0,0.211297]
[1727840645205,0.0142354,61989.0,61988.0,0.217297]
[1727840645427,0.0122354,61989.0,61988.0,0.217297]
[1727840646321,0.0122354,61989.0,61988.0,0.218297]
[1727840646572,0.0122354,61989.0,61988.0,0.212297]
[1727840647010,0.0122354,61989.0,61988.0,0.219297]
[1727840648149,0.0122354,61989.0,61988.0,0.218297]
[1727840648382,0.0122354,61989.0,61988.0,0.220297]
[1727840648626,0.0122354,61989.0,61988.0,0.218297]
[1727840649065,0.0122354,61989.0,61988.0,0.219297]
[1727840649297,0.0122354,61989.0,61988.0,0.218297]
[1727840649519,0.0122354,61989.0,61988.0,0.220297]
[1727840649966,0.0122354,61989.0,61988.0,0.213297]
[1727840650191,0.0122354,61989.0,61988.0,0.220297]
[1727840650664,0.0122354,61989.0,61988.0,0.211297]
[1727840651112,0.0122354,61989.0,61988.0,0.225297]
[1727840660959,0.0122354,61989.0,61988.0,0.50909145]
[1727840662169,0.0122354,61989.0,61988.0,0.41299145]
[1727840662884,0.0122354,61989.0,61988.0,0.144697]
[1727840667567,0.21848247,61989.0,61988.0,0.01564]
[1727840667786,0.26685568,61989.0,61988.0,0.01564]
[1727840668060,0.21848247,61989.0,61988.0,0.01564]
[1727840668316,0.21848247,61989.0,61988.0,0.01164]
[1727840668810,0.22248247,61989.0,61988.0,0.00264]
[1727840669059,0.27184743,61989.0,61988.0,0.00364]
[1727840669551,0.27084743,61989.0,61988.0,0.00164]
[1727840669763,0.34853747,61989.0,61988.0,0.00164]
[1727840670478,0.34753747,61989.0,61988.0,0.00164]
[1727840670961,0.35153747,61989.0,61988.0,0.00264]
[1727840671712,0.40090135,61989.0,61988.0,0.00364]
[1727840672169,0.39990135,61989.0,61988.0,0.00264]
[1727840672641,0.40090135,61989.0,61988.0,0.00264]
[1727840672863,0.35253747,61989.0,61988.0,0.00264]
[1727840673328,0.40090095,61989.0,61988.0,0.00264]
[1727840675023,0.35253747,61989.0,61988.0,0.00264]
[1727840675461,0.4009024,61989.0,61988.0,0.00264]
[1727840675680,0.22348247,61989.0,61988.0,0.00264]
[1727840675898,0.35253747,61989.0,61988.0,0.00264]
[1727840676338,0.40090261,61989.0,61988.0,0.00264]
[1727840676778,0.35253747,61989.0,61988.0,0.00264]
[1727840677048,0.42508556,61989.0,61988.0,0.00264]
[1727840677720,0.35253747,61989.0,61988.0,0.00264]
[1727840678389,0.42508556,61989.0,61988.0,0.00264]
[1727840679055,0.35253747,61989.0,61988.0,0.00264]
[1727840679554,0.4503715,61989.0,61988.0,0.00264]
[1727840680283,0.37782341,61989.0,61988.0,0.00264]
[1727840680955,0.4503715,61989.0,61988.0,0.00264]
[1727840682180,0.42508556,61989.0,61988.0,0.00264]
[1727840682402,0.27184473,61989.0,61988.0,0.00264]
[1727840684033,0.40089973,61989.0,61988.0,0.00264]
[1727840684255,0.27184473,61989.0,61988.0,0.00164]
[1727840684476,0.39689973,61989.0,61988.0,0.00164]
[1727840684712,0.39989973,61989.0,61988.0,0.00264]
[1727840684935,0.27184473,61989.0,61988.0,0.00264]
[1727840685383,0.27084473,61989.0,61988.0,0.00264]
[1727840685825,0.27184473,61989.0,61988.0,0.00264]
[1727840686059,0.40089973,61989.0,61988.0,0.00264]
[1727840686284,0.27184473,61989.0,61988.0,0.00264]
[1727840686929,0.40089973,61989.0,61988.0,0.00264]
[1727840687807,0.16179766,61989.0,61988.0,0.00264]
[1727840688034,0.0172354,61989.0,61988.0,0.131697]
[1727840688708,0.0162354,61989.0,61988.0,0.131697]
[1727840688946,0.0132354,61989.0,61988.0,0.130697]
[1727840689158,0.0172354,61989.0,61988.0,0.131697]
[1727840689588,0.0132354,61989.0,61988.0,0.130697]
[1727840689845,0.0172354,61989.0,61988.0,0.130697]
[1727840690738,0.0162354,61989.0,61988.0,0.130697]
[1727840698879,0.0162354,61989.0,61988.0,0.00164]
[1727840699316,0.0162354,61989.0,61988.0,0.130697]
[1727840699534,0.06459766,61989.0,61988.0,0.130697]
[1727840700002,0.0162354,61989.0,61988.0,0.130697]
[1727840701368,0.06461213,61989.0,61988.0,0.130697]
[1727840702252,0.19366713,61989.0,61988.0,0.00164]
[1727840702474,0.0888005,61989.0,61988.0,0.00164]
[1727840702746,0.06462586,61989.0,61988.0,0.00164]
[1727840703183,0.06462692,61989.0,61988.0,0.00164]
[1727840703581,0.0162354,61989.0,61988.0,0.00164]
[1727840704256,0.0162354,61989.0,61988.0,0.130697]
[1727840706302,0.06464704,61989.0,61988.0,0.130697]
[1727840706520,0.0162354,61989.0,61988.0,0.130697]
[1727840706744,0.08882269,61989.0,61988.0,0.130697]
[1727840707225,0.0162354,61989.0,61988.0,0.130697]
[1727840707919,0.0162354,61989.0,61988.0,0.00164]
[1727840708139,0.08888401,61989.0,61988.0,0.00164]
[1727840708357,0.19199107,61989.0,61988.0,0.00164]
[1727840708800,0.28885676,61989.0,61988.0,0.00164]
[1727840709307,0.38535676,61989.0,61988.0,0.00164]
[1727840709573,0.89995255,61989.0,61988.0,0.00164]
[1727840709800,0.75665401,61989.0,61988.0,0.00164]
[1727840710055,0.75665401,61989.0,61980.0,0.00028]
[1727840710056,0.23911807,61981.0,61980.0,0.00028]
[1727840710335,0.75776819,61981.0,61980.0,0.00028]
[1727840710580,1.10364091,61981.0,61980.0,0.00028]
[1727840710794,1.10364091,61981.0,61964.0,0.00164]
[1727840710795,0.41733507,61973.0,61964.0,0.00164]
[1727840711026,0.59309074,61973.0,61964.0,0.130747]
[1727840711256,0.59309074,61973.0,61964.0,0.130745]
[1727840711485,0.129096,61970.0,61965.0,0.129104]
[1727840711711,0.11004707,61966.0,61965.0,0.129104]
[1727840711967,0.18265758,61966.0,61965.0,0.129104]
[1727840712648,0.15843212,61966.0,61965.0,0.129104]
[1727840713160,0.15843212,61966.0,61965.0,0.135104]
[1727840713161,0.16343212,61966.0,61965.0,0.135104]
[1727840713606,0.11504707,61966.0,61965.0,0.135104]
[1727840714271,0.14831602,61966.0,61965.0,0.006]
[1727840714509,0.37414899,61966.0,61965.0,0.006]
[1727840714726,0.46049575,61966.0,61965.0,0.006]
[1727840714943,0.46028041,61966.0,61965.0,0.006]
[1727840715175,0.48557647,61966.0,61965.0,0.006]
[1727840715401,0.55697057,61966.0,61965.0,0.006]
[1727840715626,0.55679968,61966.0,61965.0,0.006]
[1727840715864,0.27741902,61966.0,61965.0,0.006]
[1727840716092,0.55681452,61966.0,61965.0,0.006]
[1727840716521,0.65131452,61966.0,61965.0,0.006]
[1727840716766,0.37191902,61966.0,61965.0,0.006]
[1727840716983,0.44437017,61966.0,61965.0,0.006]
[1727840717424,0.053299,61966.0,61965.0,0.006]
[1727840717641,0.005,61966.0,61965.0,0.006]
[1727840717863,0.005,61966.0,61965.0,0.135105]
[1727840718102,0.03029491,61966.0,61965.0,0.135105]
[1727840718778,0.03029491,61966.0,61965.0,0.006]
[1727840721018,0.15939791,61966.0,61965.0,0.006]
[1727840721241,0.03029491,61966.0,61965.0,0.006]
[1727840722193,0.005,61966.0,61965.0,0.006]
[1727840723335,0.134103,61966.0,61965.0,0.006]
[1727840724877,0.134103,61966.0,61965.0,0.00764]
[1727840725086,0.005,61966.0,61965.0,0.00764]
[1727840725699,0.134103,61966.0,61965.0,0.00764]
[1727840726600,0.03029498,61966.0,61965.0,0.00764]
[1727840726816,0.15939798,61966.0,61965.0,0.00764]
[1727840727697,0.03029498,61966.0,61965.0,0.00764]
[1727840727916,0.15939798,61966.0,61965.0,0.00764]
[1727840730351,0.15939798,61966.0,61965.0,0.136745]
[1727840730352,0.03029498,61966.0,61965.0,0.136745]
[1727840730569,0.03029498,61966.0,61965.0,0.00764]
[1727840731686,0.15939798,61966.0,61965.0,0.00764]
[1727840731895,0.03029498,61966.0,61965.0,0.00764]
[1727840732111,0.005,61966.0,61965.0,0.00764]
[1727840735673,0.005,61966.0,61965.0,0.136745]
[1727840736312,0.005,61966.0,61965.0,0.00764]
[1727840736525,0.005,61966.0,61965.0,0.136745]
[1727840736748,0.005,61966.0,61965.0,0.00764]
[1727840736961,0.005,61966.0,61965.0,0.136745]
[1727840737172,0.005,61966.0,61965.0,0.00764]
[1727840738700,0.005,61966.0,61965.0,0.136745]
[1727840738914,0.005,61966.0,61965.0,0.00764]
[1727840739354,0.005,61966.0,61965.0,0.136745]
[1727840739565,0.005,61966.0,61965.0,0.00764]
[1727840739812,0.03029461,61966.0,61965.0,0.00764]
[1727840740892,0.134103,61966.0,61965.0,0.00764]
[1727840741170,0.23597601,61966.0,61965.0,0.00764]
[1727840741378,0.134103,61966.0,61965.0,0.00764]
[1727840741826,0.005,61966.0,61965.0,0.00764]
[1727840747259,0.134103,61966.0,61965.0,0.00764]
[1727840748210,0.232803,61966.0,61965.0,0.00764]
[1727840748636,0.005,61966.0,61965.0,0.00764]
[1727840749062,0.134103,61966.0,61965.0,0.00764]
[1727840750580,0.005,61966.0,61965.0,0.00764]
[1727840750812,0.05328399,61966.0,61965.0,0.00764]
[1727840751028,0.31638139,61966.0,61965.0,0.00764]
[1727840751239,0.60039036,61966.0,61965.0,0.00764]
[1727840754577,0.60077771,61966.0,61965.0,0.00764]
[1727840755462,0.7460959,61966.0,61965.0,0.00764]
[1727840755685,0.60077771,61966.0,61965.0,0.00764]
[1727840755897,0.85733669,61966.0,61965.0,0.00764]
[1727840756324,0.60077771,61966.0,61965.0,0.00764]
[1727840756760,0.76547216,61966.0,61965.0,0.00764]
[1727840756979,0.76747216,61966.0,61965.0,0.00764]
[1727840757440,0.86747216,61966.0,61965.0,0.00764]
[1727840757680,1.12403114,61966.0,61965.0,0.00764]
[1727840757974,1.00717874,61966.0,61965.0,0.00764]
[1727840758202,1.12822581,61966.0,61965.0,0.00964]
[1727840758686,0.86066683,61966.0,61965.0,0.00764]
[1727840758961,0.87166683,61966.0,61965.0,0.00964]
[1727840759202,0.87112474,61966.0,61965.0,0.00964]
[1727840760606,0.87109792,61966.0,61965.0,0.00964]
[1727840761044,0.90939512,61966.0,61965.0,0.00864]
[1727840761251,0.91839512,61966.0,61965.0,0.00964]
[1727840762357,1.17396988,61966.0,61965.0,0.00964]
[1727840763044,0.91839512,61966.0,61965.0,0.00964]
[1727840767226,1.08327694,61966.0,61965.0,0.00964]
[1727840767437,1.3388517,61966.0,61965.0,0.00964]
[1727840769999,1.2638517,61966.0,61965.0,0.00964]
[1727840770725,1.09896988,61966.0,61965.0,0.00964]
[1727840770935,0.84339512,61966.0,61965.0,0.00964]
[1727840771144,0.63334805,61966.0,61965.0,0.00964]
[1727840771357,0.61939792,61966.0,61965.0,0.00964]
[1727840771568,0.76467591,61966.0,61965.0,0.00964]
[1727840773463,0.92955773,61966.0,61965.0,0.00964]
[1727840774708,0.9548552,61966.0,61965.0,0.00964]
[1727840775336,1.06515197,61966.0,61965.0,0.00964]
[1727840775544,0.80957721,61966.0,61965.0,0.00964]
[1727840775752,0.61939792,61966.0,61965.0,0.00964]
[1727840777042,0.79139792,61966.0,61965.0,0.00964]
[1727840777969,0.60265085,61966.0,61965.0,0.00964]
[1727840778187,0.71269792,61966.0,61965.0,0.00964]
[1727840778820,0.73799543,61966.0,61965.0,0.00964]
[1727840780345,0.90287725,61966.0,61965.0,0.00964]
[1727840781201,0.64469543,61966.0,61965.0,0.00964]
[1727840781417,0.6453092,61966.0,61965.0,0.00964]
[1727840782054,0.62001169,61966.0,61965.0,0.00964]
[1727840785959,0.34527017,61966.0,61965.0,0.00964]
[1727840786172,0.45533126,61966.0,61965.0,0.00964]
[1727840789363,0.48062816,61966.0,61965.0,0.00964]
[1727840790625,0.48067782,61966.0,61965.0,0.00964]
[1727840792252,0.45538092,61966.0,61965.0,0.00964]
[1727840795438,0.48078636,61966.0,61965.0,0.00964]
[1727840795660,0.88206646,61966.0,61965.0,0.00964]
[1727840795895,0.88406646,61966.0,61965.0,0.00964]
[1727840796392,0.85876949,61966.0,61965.0,0.00964]
[1727840798112,0.71758384,61966.0,61965.0,0.00964]
[1727840800053,0.71612198,61966.0,61965.0,0.00964]
[1727840800288,0.97075043,61966.0,61965.0,0.00964]
[1727840800516,0.97275043,61966.0,61965.0,0.00964]
[1727840800754,0.71812198,61966.0,61965.0,0.00964]
[1727840801021,0.74341988,61966.0,61965.0,0.00964]
[1727840801490,0.87160113,61966.0,61965.0,0.00964]
[1727840801730,1.03325058,61966.0,61965.0,0.00964]
[1727840802186,1.00795268,61966.0,61965.0,0.00964]
[1727840804600,0.84430323,61966.0,61965.0,0.00964]
[1727840804916,0.91059187,61966.0,61965.0,0.00964]
[1727840805359,0.93588976,61966.0,61965.0,0.00964]
[1727840805557,0.77220112,61966.0,61965.0,0.00964]
[1727840807904,0.64401987,61966.0,61965.0,0.00964]
[1727840809891,0.80745474,61966.0,61965.0,0.00964]
[1727840812057,0.78215685,61966.0,61965.0,0.00964]
[1727840818030,0.96095685,61966.0,61965.0,0.00964]
[1727840818275,0.79724176,61966.0,61965.0,0.00964]
[1727840819927,0.71554176,61966.0,61965.0,0.00964]
[1727840820620,0.71548467,61966.0,61965.0,0.00964]
[1727840820843,0.97003319,61966.0,61965.0,0.00964]
[1727840821291,0.71548467,61966.0,61965.0,0.00964]
[1727840821528,0.71748467,61966.0,61965.0,0.00964]
[1727840821746,0.71548467,61966.0,61965.0,0.00964]
[1727840822461,0.6054376,61966.0,61965.0,0.00964]
[1727840822731,0.71548467,61966.0,61965.0,0.00964]
[1727840823820,0.61838467,61966.0,61965.0,0.00964]
[1727840825327,0.64368259,61966.0,61965.0,0.00964]
[1727840826406,0.61838467,61966.0,61965.0,0.00964]
[1727840827271,0.6182021,61966.0,61965.0,0.00964]
[1727840829260,0.6190221,61966.0,61965.0,0.00964]
[1727840829906,0.79954188,61966.0,61965.0,0.00964]
[1727840830118,0.79954188,61966.0,61963.0,0.00164]
[1727840830119,0.131107,61964.0,61963.0,0.00164]
[1727840830331,0.47725951,61964.0,61963.0,0.00164]
[1727840830685,0.47525951,61964.0,61963.0,0.00164]
[1727840830773,0.47725951,61964.0,61963.0,0.00164]
[1727840831000,0.47725951,61964.0,61947.0,0.130778]
[1727840831001,0.12913,61953.0,61952.0,0.24459823]
[1727840831244,0.56614636,61953.0,61952.0,0.24459823]
[1727840831485,0.42063513,61953.0,61952.0,0.24459823]
[1727840831701,0.56614636,61953.0,61952.0,0.001638]
[1727840831921,0.42063513,61953.0,61952.0,0.001638]
[1727840833038,0.42363513,61953.0,61952.0,0.001638]
[1727840834633,0.31158806,61953.0,61952.0,0.001638]
[1727840834881,0.42663513,61953.0,61952.0,0.001638]
[1727840835335,0.4519373,61953.0,61952.0,0.001638]
[1727840835803,0.4609373,61953.0,61952.0,0.001638]
[1727840836056,0.33689023,61953.0,61952.0,0.001638]
[1727840836306,0.42063513,61953.0,61952.0,0.001638]
[1727840836559,0.32558806,61953.0,61952.0,0.001638]
[1727840836812,0.43563513,61953.0,61952.0,0.001638]
[1727840837079,0.43063513,61953.0,61952.0,0.001638]
[1727840837554,0.43663513,61953.0,61952.0,0.001638]
[1727840839483,0.46193699,61953.0,61952.0,0.001638]
[1727840840381,0.60015701,61953.0,61952.0,0.001638]
[1727840841522,0.46193699,61953.0,61952.0,0.001638]
[1727840841739,0.46125328,61953.0,61952.0,0.001638]
[1727840843709,0.43595142,61953.0,61952.0,0.001638]
[1727840844788,0.32590435,61953.0,61952.0,0.001638]
[1727840845001,0.43595142,61953.0,61952.0,0.001638]
[1727840845241,0.43597299,61953.0,61952.0,0.001638]
[1727840845970,0.43599833,61953.0,61952.0,0.001638]
[1727840848159,0.4613001,61953.0,61952.0,0.001638]
[1727840849908,0.46101939,61953.0,61952.0,0.001638]
[1727840851033,0.35097232,61953.0,61952.0,0.001638]
[1727840851243,0.46101939,61953.0,61952.0,0.001638]
[1727840852176,0.43571762,61953.0,61952.0,0.001638]
[1727840855201,0.25489636,61953.0,61952.0,0.001638]
[1727840855415,0.43570282,61953.0,61952.0,0.001638]
[1727840856890,0.32565575,61953.0,61952.0,0.001638]
[1727840857116,0.43570282,61953.0,61952.0,0.001638]
[1727840857361,0.435418,61953.0,61952.0,0.001638]
[1727840858099,0.19680646,61953.0,61952.0,0.001638]
[1727840858338,0.06443848,61953.0,61952.0,0.30707]
[1727840858593,0.016,61953.0,61952.0,0.30707]
[1727840859335,0.01,61953.0,61952.0,0.30707]
[1727840860707,0.006,61953.0,61952.0,0.30707]
[1727840861168,0.003,61953.0,61952.0,0.30707]
[1727840861991,0.11304707,61953.0,61952.0,0.30707]
[1727840863982,0.11304707,61953.0,61952.0,0.21247]
[1727840864190,0.11386707,61953.0,61952.0,0.21247]
[1727840864395,0.11386707,61953.0,61952.0,0.083338]
[1727840865050,0.21181964,61953.0,61952.0,0.083338]
[1727840865250,0.32039358,61953.0,61952.0,0.083338]
[1727840865459,0.39196327,61953.0,61952.0,0.083338]
[1727840865663,0.29509341,61953.0,61952.0,0.21247]
[1727840865869,0.29509341,61953.0,61952.0,0.083338]
[1727840866505,0.29509341,61953.0,61952.0,0.21247]
[1727840867372,0.39196327,61953.0,61952.0,0.21247]
[1727840867792,0.18651985,61953.0,61952.0,0.21247]
[1727840868931,0.00382,61953.0,61952.0,0.21247]
[1727840869365,0.05225415,61953.0,61952.0,0.21247]
[1727840869790,0.07727328,61953.0,61952.0,0.21247]
[1727840870667,0.02883913,61953.0,61952.0,0.21247]
[1727840872165,0.00353919,61953.0,61952.0,0.21247]
[1727840873867,0.05197334,61953.0,61952.0,0.21247]
[1727840874088,0.05196892,61953.0,61952.0,0.21247]
[1727840874328,0.00353919,61953.0,61952.0,0.21247]
[1727840875227,0.00353919,61953.0,61952.0,0.49626445]
[1727840875446,0.00353919,61953.0,61952.0,0.59626445]
[1727840875898,0.00353919,61953.0,61952.0,0.61381952]
[1727840876335,0.00082,61953.0,61952.0,0.59626445]
[1727840876832,0.00082,61953.0,61952.0,0.59826445]
[1727840877245,0.00082,61953.0,61952.0,0.59626445]
[1727840877456,0.00182,61953.0,61952.0,0.61026445]
[1727840877665,0.00282,61953.0,61952.0,0.61026445]
[1727840877871,0.00182,61953.0,61952.0,0.61026445]
[1727840878074,0.00182,61953.0,61952.0,0.59626445]
[1727840878075,0.00082,61953.0,61952.0,0.59626445]
[1727840878279,0.00182,61953.0,61952.0,0.59626445]
[1727840878483,0.00082,61953.0,61952.0,0.59626445]
[1727840878929,0.00182,61953.0,61952.0,0.59626445]
[1727840879355,0.00182,61953.0,61952.0,0.61226445]
[1727840879356,0.00282,61953.0,61952.0,0.61226445]
[1727840879872,0.00182,61953.0,61952.0,0.59826445]
[1727840880297,0.00282,61953.0,61952.0,0.61226445]
[1727840880741,0.00082,61953.0,61952.0,0.59826445]
[1727840880953,0.00182,61953.0,61952.0,0.61226445]
[1727840881170,0.00282,61953.0,61952.0,0.61026445]
[1727840881380,0.00182,61953.0,61952.0,0.61026445]
[1727840881589,0.00282,61953.0,61952.0,0.61026445]
[1727840882021,0.00282,61953.0,61952.0,0.61226445]
[1727840882519,0.00282,61953.0,61952.0,0.59826445]
[1727840882986,0.00382,61953.0,61952.0,0.61226445]
[1727840883415,0.00382,61953.0,61952.0,0.59826445]
[1727840883416,0.00282,61953.0,61952.0,0.59826445]
[1727840883902,0.00282,61953.0,61952.0,0.61226445]
[1727840883903,0.00382,61953.0,61952.0,0.61226445]
[1727840885488,0.00382,61953.0,61952.0,0.61726445]
[1727840887821,0.00382,61953.0,61952.0,0.61226445]
[1727840888089,0.00382,61953.0,61952.0,0.61726445]
[1727840888937,0.00382,61953.0,61952.0,0.61226445]
[1727840889170,0.00382,61953.0,61952.0,0.61726445]
[1727840890003,0.00353914,61953.0,61952.0,0.72731152]
[1727840894307,1.4e-07,61953.0,61952.0,0.72731152]
[1727840894574,1.4e-07,61953.0,61952.0,0.7593667]
[1727840895015,1.4e-07,61953.0,61952.0,0.7270267]
[1727840895440,1.4e-07,61953.0,61952.0,0.61697963]
[1727840895653,0.00100014,61953.0,61952.0,0.7270267]
[1727840895876,1.4e-07,61953.0,61952.0,0.7270267]
[1727840896093,0.00082,61963.0,61962.0,0.334411]
[1727840896309,0.00082,61963.0,61962.0,0.49910545]
[1727840898275,0.07672,61963.0,61962.0,0.129111]
[1727840898757,0.17622,61963.0,61962.0,0.136111]
[1727840898765,0.17522,61963.0,61962.0,0.129111]
[1727840899037,0.17622,61963.0,61962.0,0.007]
[1727840899284,0.17622,61963.0,61962.0,0.018]
[1727840899285,0.305329,61963.0,61962.0,0.018]
[1727840899551,0.33062456,61963.0,61962.0,0.018]
[1727840899810,0.33062456,61963.0,61962.0,0.011]
[1727840899811,0.54576558,61963.0,61962.0,0.011]
[1727840900265,0.12912,61958.0,61954.0,0.129127]
[1727840900504,0.16788186,61957.0,61954.0,0.129127]
[1727840900748,0.16788186,61957.0,61955.0,0.129125]
[1727840901495,0.006,61958.0,61955.0,0.129125]
[1727840902018,0.129118,61959.0,61955.0,0.129125]
[1727840902530,0.005,61957.0,61955.0,0.129125]
[1727840902780,0.129118,61959.0,61955.0,0.129125]
[1727840903025,0.006,61958.0,61955.0,0.129125]
[1727840904038,0.006,61958.0,61956.0,0.129123]
[1727840904288,0.006,61958.0,61954.0,0.129126]
[1727840904781,0.129118,61959.0,61954.0,0.129126]
[1727840905029,0.02529769,61958.0,61954.0,0.129126]
[1727840905535,0.15441669,61958.0,61954.0,0.129126]
[1727840906036,0.16041669,61958.0,61954.0,0.129126]
[1727840906281,0.16788186,61957.0,61954.0,0.129126]
[1727840908446,0.17288186,61957.0,61954.0,0.129126]
[1727840909468,0.30200286,61957.0,61954.0,0.129126]
[1727840909949,0.134121,61957.0,61954.0,0.129126]
[1727840910201,0.263244,61957.0,61952.0,0.00135318]
[1727840910460,0.129124,61956.0,61952.0,0.13048318]
[1727840910677,0.263244,61957.0,61952.0,0.00135318]
[1727840910917,0.129124,61956.0,61952.0,0.13048418]
[1727840911189,0.258244,61957.0,61952.0,0.00135318]
[1727840911452,0.129125,61956.0,61952.0,0.00135318]
[1727840911721,0.129125,61956.0,61952.0,0.13048418]
[1727840912154,0.263244,61957.0,61956.0,0.129123]
[1727840912155,0.005,61957.0,61956.0,0.129123]
[1727840912374,0.005,61957.0,61956.0,0.49401745]
[1727840912818,0.00082,61963.0,61962.0,0.252111]
[1727840913047,0.00082,61963.0,61962.0,0.41680545]
[1727840914674,0.00082,61963.0,61962.0,0.129111]
[1727840915120,0.00082,61963.0,61962.0,0.131111]
[1727840915338,0.00082,61963.0,61962.0,0.129111]
[1727840915784,0.00082,61963.0,61962.0,0.137111]
[1727840915995,0.00082,61963.0,61962.0,0.135111]
[1727840916201,0.00082,61963.0,61962.0,0.129111]
[1727840916630,0.00082,61963.0,61962.0,0.132111]
[1727840917980,0.00182,61963.0,61962.0,0.129111]
[1727840918227,0.00082,61963.0,61962.0,0.133111]
[1727840918440,0.00082,61963.0,61962.0,0.135111]
[1727840918650,0.00082,61963.0,61962.0,0.131111]
[1727840919083,0.00082,61963.0,61962.0,0.137111]
[1727840919298,0.00082,61963.0,61962.0,0.135111]
[1727840919511,0.00282,61963.0,61962.0,0.129111]
[1727840919724,0.00282,61963.0,61962.0,0.131111]
[1727840920848,0.00082,61963.0,61962.0,0.131111]
[1727840921059,0.00082,61963.0,61962.0,0.129111]
[1727840921276,0.00082,61963.0,61962.0,0.132111]
[1727840921495,0.00082,61963.0,61962.0,0.140111]